bitfinex/quotes_ETHUSD_20250114
["timestamp","ask_amount","ask_price","bid_price","bid_amount"]
[1736877974098,3.65269,3223.0,3222.0,157.22889416]
[1736877974424,0.55,3222.8,3222.2,0.61234064]
[1736877975412,0.8231,3222.5,3222.0,151.0]
[1736877975633,0.55,3222.3,3222.0,151.0]
[1736877976007,0.55,3222.4,3222.0,151.0]
[1736877976685,3.65329,3222.4,3222.0,151.0]
[1736877976886,0.55,3222.4,3222.0,151.0]
[1736877977688,3.6533,3222.4,3222.0,151.0]
[1736877978017,0.55,3222.4,3222.0,151.0]
[1736877979008,3.6533,3222.4,3222.0,151.0]
[1736877979406,0.55,3222.2,3222.0,151.0]
[1736877979590,0.55,3222.2,3222.0,150.45]
[1736877979789,3.65356,3222.1,3222.0,150.45]
[1736877980414,4.48536,3222.1,3222.0,150.45]
[1736877980812,1.3818,3222.1,3222.0,150.45]
[1736877981296,4.48536,3222.1,3222.0,150.45]
[1736877981501,7.48536,3222.1,3222.0,150.45]
[1736877981836,0.55,3222.1,3222.0,150.45]
[1736877981985,4.48536,3222.1,3222.0,150.45]
[1736877982886,1.3818,3222.1,3222.0,150.45]
[1736877983108,4.48536,3222.1,3222.0,150.45]
[1736877983633,3.92576,3222.1,3222.0,125.25773221]
[1736877983786,9.98203447,3222.1,3222.0,63.68113033]
[1736877983985,8.03344721,3222.1,3222.0,46.92184851]
[1736877984186,7.24914923,3222.1,3222.0,40.71452851]
[1736877984436,7.43914923,3222.1,3222.0,40.71452851]
[1736877985124,7.43914923,3222.1,3222.0,40.68348344]
[1736877985436,8.11503345,3222.1,3222.0,32.92433344]
[1736877985983,8.11503345,3222.1,3222.0,32.37433344]
[1736877986234,8.11503345,3222.1,3222.0,27.71884344]
[1736877986435,8.11503345,3222.1,3222.0,24.61518344]
[1736877986607,8.11503345,3222.1,3222.0,12.23727022]
[1736877986802,3.10503,3220.6,3219.6,0.778]
[1736877987015,0.7622,3220.5,3219.6,1.166415]
[1736877987351,0.83024423,3220.5,3219.6,0.388415]
[1736877987493,0.64024423,3220.5,3219.6,0.388415]
[1736877987693,0.19,3220.4,3219.6,0.62549945]
[1736877988247,0.55,3220.2,3219.6,0.62549945]
[1736877988596,0.55,3220.0,3219.6,0.62549945]
[1736877989043,0.06564407,3219.9,3219.8,3.10578]
[1736877989351,0.2162,3221.0,3219.8,3.58522096]
[1736877989510,0.2162,3221.0,3220.2,3.10535]
[1736877989859,0.6112731,3220.9,3220.3,3.13534817]
[1736877990138,0.6112731,3220.9,3220.1,3.10545]
[1736877991012,0.65008466,3220.9,3219.9,0.48522914]
[1736877991235,0.55,3220.7,3220.0,0.63270226]
[1736877991599,0.55,3220.5,3220.0,0.63270226]
[1736877991933,0.55,3220.3,3219.8,3.10577]
[1736877992449,3.29885,3220.8,3219.8,3.10577]
[1736877992450,0.55,3220.7,3219.8,3.10577]
[1736877992602,0.55,3220.7,3219.9,0.388377]
[1736877992802,0.55,3220.5,3219.9,0.388377]
[1736877993238,0.55,3220.3,3219.9,0.99936279]
[1736877993637,0.06107432,3220.4,3219.9,0.99936279]
[1736877993950,0.0222,3221.0,3220.0,0.778]
[1736877994150,3.10409,3221.6,3219.9,0.99936279]
[1736877994151,0.194,3221.2,3220.5,3.10505]
[1736877994353,0.0613246,3220.9,3220.3,3.1053]
[1736877994501,0.194,3221.5,3220.7,0.778]
[1736877994696,0.06174891,3221.4,3220.9,3.10463]
[1736877994930,0.06174891,3221.4,3220.9,3.492893]
[1736877995113,0.0222,3221.8,3220.9,3.492893]
[1736877995321,0.25605821,3221.7,3220.9,3.492893]
[1736877995514,0.06205821,3221.7,3220.9,3.32472079]
[1736877995802,0.0222,3221.8,3221.0,0.3354836]
[1736877995997,0.0222,3221.8,3221.1,3.10452]
[1736877996214,0.06195212,3221.7,3221.1,3.10452]
[1736877996410,0.0222,3221.8,3221.0,0.3354836]
[1736877996643,0.5722,3221.8,3221.2,3.10441]
[1736877996809,0.5722,3221.8,3221.3,0.37367323]
[1736877997016,0.06195474,3221.7,3221.3,3.47799323]
[1736877997226,0.0222,3221.8,3221.3,3.47799323]
[1736877997411,0.06191502,3221.6,3221.3,0.37367323]
[1736877997611,0.55,3221.5,3221.1,0.63232228]
[1736877998033,0.5722,3221.8,3221.1,0.63232228]
[1736877998237,0.55,3221.3,3221.1,0.63232228]
[1736877998447,0.5722,3221.8,3221.1,0.63232228]
[1736877998942,0.55,3221.6,3221.1,0.63232228]
[1736877999243,0.55,3221.6,3220.8,3.10481]
[1736877999416,0.06144031,3221.5,3220.9,0.388281]
[1736877999614,0.5722,3221.8,3220.5,3.10502]
[1736877999615,0.55,3221.6,3220.5,3.10502]
[1736877999820,0.55,3221.3,3220.5,3.10502]
[1736878000017,0.55,3221.3,3220.4,0.778]
[1736878000018,0.55,3221.4,3220.4,0.778]
[1736878000223,0.55,3221.1,3220.8,0.61962979]
[1736878000408,0.55,3221.7,3220.8,3.72442979]
[1736878000744,0.55,3221.5,3220.8,4.09687277]
[1736878001206,0.55,3221.3,3220.8,4.09687277]
[1736878001649,0.55,3221.1,3220.8,4.09687277]
[1736878002010,0.55,3221.1,3220.8,0.99207277]
[1736878002240,0.55,3221.6,3220.8,0.61962979]
[1736878002446,0.55,3220.9,3220.8,0.61962979]
[1736878002746,0.5722,3221.8,3220.9,3.10464]
[1736878002938,0.5722,3221.8,3220.8,0.61962979]
[1736878003126,0.55,3221.6,3220.8,0.61962979]
[1736878003315,0.0222,3221.3,3220.4,0.778]
[1736878003514,0.0222,3221.3,3220.6,0.60925545]
[1736878003515,0.55,3221.1,3220.6,0.60925545]
[1736878003755,0.55,3220.9,3220.6,0.60925545]
[1736878004245,0.55,3220.7,3220.2,3.10537]
[1736878004425,0.55,3220.7,3220.2,3.51062063]
[1736878004739,0.55,3220.5,3220.4,0.61759034]
[1736878004941,0.6108602,3220.5,3220.0,3.10553]
[1736878005139,0.0222,3220.6,3220.0,3.10553]
[1736878005923,0.0222,3220.6,3219.7,0.7694]
[1736878006120,0.0222,3220.6,3219.9,3.10567]
[1736878006346,0.0222,3220.6,3219.7,3.1058]
[1736878006347,0.55,3220.4,3219.7,3.1058]
[1736878006562,0.55,3220.2,3219.6,3.10597]
[1736878007042,0.0222,3220.1,3219.7,0.61522671]
[1736878007222,0.0222,3220.1,3219.1,3.8758]
[1736878007223,0.55,3220.0,3219.1,3.1064]
[1736878007418,0.61025238,3220.0,3219.1,0.31064]
[1736878007623,0.61025238,3220.0,3219.2,3.10635]
[1736878007848,0.61025238,3220.0,3219.3,0.61205448]
[1736878008033,0.06025238,3220.0,3219.5,0.8258]
[1736878008224,0.194,3220.4,3219.9,3.10568]
[1736878008746,0.0222,3220.5,3219.5,0.8258]
[1736878008747,0.55,3220.2,3219.5,0.8258]
[1736878009114,0.55,3220.2,3219.6,3.10588]
[1736878009240,0.55,3220.4,3219.7,3.10587]
[1736878009438,0.55,3220.0,3219.7,3.10587]
[1736878009624,0.55,3220.4,3219.7,3.10587]
[1736878009824,0.55,3219.8,3219.7,3.10587]
[1736878010025,0.194,3220.4,3219.7,3.499037]
[1736878010226,0.194,3220.4,3219.4,3.10607]
[1736878010227,3.84921,3220.4,3219.4,3.10607]
[1736878010536,0.60954583,3220.3,3219.4,3.10607]
[1736878010861,0.60954583,3220.3,3219.2,0.8258]
[1736878011066,0.60954583,3220.3,3219.6,3.10595]
[1736878011363,0.60954583,3220.3,3219.4,3.10609]
[1736878011527,0.60954583,3220.3,3219.2,0.8258]
[1736878011722,3.71489583,3220.3,3219.2,0.8258]
[1736878011950,0.60954583,3220.3,3219.5,3.10604]
[1736878012356,0.80354583,3220.3,3219.4,3.10611]
[1736878012685,0.80354583,3220.3,3219.7,0.61073879]
[1736878013032,0.80354583,3220.3,3219.7,3.71660879]
[1736878015766,0.80354583,3220.3,3219.7,0.61073879]
[1736878015930,0.744,3220.3,3219.7,0.61073879]
[1736878016131,0.05958085,3220.2,3219.7,0.61073879]
[1736878019341,0.05958085,3220.2,3220.1,6.66363177]
[1736878019534,0.0222,3220.9,3220.4,3.10517]
[1736878019737,0.0222,3220.9,3220.5,3.13521966]
[1736878019936,0.0222,3220.9,3220.5,3.10509]
[1736878020131,0.0222,3221.3,3220.4,2.56147457]
[1736878020337,0.0222,3221.7,3220.7,3.10485]
[1736878020535,0.0222,3221.7,3220.8,6.69302593]
[1736878020738,0.0222,3222.1,3221.2,3.10443]
[1736878020958,0.05245037,3222.0,3221.5,3.10406]
[1736878021379,0.05245037,3222.0,3221.4,3.10424]
[1736878021673,0.0222,3223.2,3221.9,4.35294177]
[1736878021872,0.0222,3223.2,3222.2,3.55814177]
[1736878022038,0.0222,3223.2,3222.6,3.10307]
[1736878022238,0.0222,3223.2,3222.4,3.10324]
[1736878022446,0.0222,3223.2,3222.5,2.56147457]
[1736878022651,0.04967148,3223.1,3222.4,2.56147457]
[1736878022850,0.0222,3223.2,3222.6,3.10306]
[1736878023373,0.55,3223.0,3222.7,3.10297]
[1736878023838,0.0222,3223.2,3222.7,3.10297]
[1736878023839,0.05029037,3222.9,3222.7,3.10297]
[1736878024246,0.0222,3223.2,3222.7,3.10297]
[1736878024446,0.05025067,3222.8,3222.7,3.10297]
[1736878024678,0.0222,3223.2,3222.3,2.56147457]
[1736878025056,0.0222,3223.2,3222.6,3.10304]
[1736878025460,0.55,3223.0,3222.6,3.10304]
[1736878025782,0.0222,3223.2,3222.6,3.10304]
[1736878026144,0.55,3223.0,3222.6,3.10304]
[1736878026343,0.55,3222.8,3222.6,3.10304]
[1736878026547,0.0222,3223.2,3222.6,3.10304]
[1736878026771,0.55,3223.0,3222.6,3.10304]
[1736878027286,0.55,3222.8,3222.6,3.10304]
[1736878027673,0.0222,3223.2,3222.6,3.10304]
[1736878028069,0.55,3223.0,3222.6,3.10304]
[1736878028588,0.55,3222.8,3222.5,0.62719287]
[1736878028764,0.55,3222.8,3222.7,3.10298]
[1736878028948,3.0,3223.7,3222.7,4.72615906]
[1736878028949,0.0222,3223.7,3222.7,4.72615906]
[1736878029281,0.04910098,3223.6,3223.5,3.10221]
[1736878029658,0.0222,3224.4,3223.9,3.10182]
[1736878030186,0.04382235,3224.3,3223.9,3.10182]
[1736878030560,0.04382235,3224.3,3223.7,3.10199]
[1736878030952,0.55,3224.2,3223.7,3.10199]
[1736878031154,0.0222,3224.4,3223.5,0.62097195]
[1736878031379,0.55,3224.2,3223.9,3.10182]
[1736878031808,0.5722,3224.4,3223.9,3.10182]
[1736878032322,0.55,3224.2,3223.9,3.10182]
[1736878032622,0.1655672,3224.5,3224.1,3.10164]
[1736878033005,0.59433897,3224.4,3223.7,3.13201058]
[1736878033185,0.59433897,3224.4,3224.0,3.10171]
[1736878033385,0.55,3224.4,3224.0,3.10171]
[1736878033683,0.55,3224.2,3224.0,3.10171]
[1736878034085,0.55,3224.2,3224.1,0.62426975]
[1736878034286,0.55,3224.4,3224.1,3.72587975]
[1736878034632,0.55,3224.4,3224.1,3.72588975]
[1736878035001,0.55,3224.2,3224.1,3.72588975]
[1736878035417,0.55,3224.4,3224.1,3.72588975]
[1736878035612,0.55,3224.4,3224.1,0.62426975]
[1736878035794,0.55,3224.2,3224.1,0.62426975]
[1736878036119,0.55,3224.2,3223.9,3.1018]
[1736878036325,0.55,3224.4,3223.9,3.1018]
[1736878036720,0.55,3224.2,3223.9,3.1018]
[1736878037098,0.55,3224.4,3223.9,3.1018]
[1736878037498,0.1655672,3224.5,3223.5,6.66031177]
[1736878037499,0.55,3224.2,3223.7,3.10202]
[1736878037700,0.0222,3224.1,3223.2,3.89742]
[1736878037939,0.55,3224.0,3223.4,3.10228]
[1736878038328,0.55,3223.8,3223.4,3.10228]
[1736878038639,0.55,3223.6,3223.4,3.10228]
[1736878038842,0.55,3223.6,3223.5,0.63671191]
[1736878039137,0.0222,3224.1,3223.5,0.63671191]
[1736878039364,0.55,3223.9,3223.5,0.63671191]
[1736878039666,0.55,3223.7,3223.5,0.63671191]
[1736878039985,0.59486295,3223.6,3223.5,0.63671191]
[1736878040352,0.55,3223.6,3223.5,0.63671191]
[1736878040752,0.55,3223.5,3222.8,3.10284]
[1736878040932,0.04451649,3223.4,3222.6,3.10301]
[1736878041136,0.55,3223.3,3222.6,3.10301]
[1736878041356,0.0444899,3223.2,3222.7,3.10296]
[1736878041548,3.0222,3223.9,3222.7,3.10296]
[1736878041765,3.0,3223.4,3222.8,0.62633411]
[1736878042065,0.0222,3223.2,3222.5,3.10314]
[1736878042242,0.0222,3223.2,3222.6,3.10305]
[1736878042442,0.04415791,3223.1,3222.6,3.10305]
[1736878043059,0.04415791,3223.1,3222.7,0.61284919]
[1736878043268,0.04415791,3223.1,3222.0,3.88465]
[1736878043269,0.55,3223.0,3222.0,3.88465]
[1736878043445,0.55,3223.0,3222.2,3.10342]
[1736878043847,6.10217,3223.6,3222.2,3.10342]
[1736878043848,0.04397547,3222.9,3222.8,3.10289]
[1736878044243,0.0222,3223.9,3222.8,3.10289]
[1736878044449,0.0222,3224.4,3223.5,3.55814177]
[1736878044752,0.1655672,3224.5,3224.2,3.10152]
[1736878045382,0.1655672,3224.5,3224.0,3.10166]
[1736878045903,0.1655672,3224.5,3224.1,3.10161]
[1736878046085,0.1655672,3224.5,3224.2,3.10149]
[1736878046660,0.1655672,3224.5,3223.8,3.71687304]
[1736878046661,0.55,3224.4,3223.8,0.61502304]
[1736878046860,0.55,3224.4,3224.3,3.10144]
[1736878047783,0.55,3224.4,3223.9,3.10183]
[1736878047991,0.55,3224.4,3224.1,3.1016]
[1736878048600,0.1655672,3224.5,3224.2,3.10144]
[1736878048879,0.1655672,3224.5,3224.3,3.10135]
[1736878049378,0.1655672,3224.5,3224.4,3.10135]
[1736878049580,0.7155672,3224.5,3224.4,3.10135]
[1736878050783,0.1655672,3224.5,3224.4,3.10135]
[1736878051382,0.1655672,3224.5,3224.4,3.411485]
[1736878053075,0.1655672,3224.5,3224.4,6.96962677]
[1736878053287,0.09637753,3225.0,3224.5,0.781]
[1736878053489,0.09637753,3225.0,3224.9,7.44001177]
[1736878053690,7.53e-06,3225.0,3224.9,7.44001177]
[1736878053996,7.53e-06,3225.0,3224.9,8.49411895]
[1736878054235,0.1655672,3227.7,3225.3,3.781]
[1736878054236,2.99666928,3227.3,3225.3,3.781]
[1736878054504,2.99666928,3227.3,3227.2,3.09866]
[1736878054997,0.64580533,3227.3,3227.2,3.72331824]
[1736878055923,0.02394531,3227.3,3227.2,3.09866]
[1736878056065,2.51e-06,3227.7,3227.6,3.09827]
[1736878056267,2.51e-06,3227.7,3227.6,3.90920595]
[1736878056571,2.51e-06,3227.7,3227.6,3.09827]
[1736878058334,2.51e-06,3227.7,3227.2,0.94135925]
[1736878058493,2.51e-06,3227.7,3227.5,3.09834]
[1736878058816,2.51e-06,3227.7,3227.3,3.09854]
[1736878059019,2.51e-06,3227.7,3227.1,3.87974]
[1736878059186,2.51e-06,3227.7,3227.1,3.09874]
[1736878059586,2.51e-06,3227.7,3226.9,3.09894]
[1736878059787,2.51e-06,3227.7,3226.7,3.88012]
[1736878059993,2.51e-06,3227.7,3226.7,1.39617929]
[1736878060192,0.55000251,3227.7,3226.7,4.2097414]
[1736878060388,3.55,3227.5,3226.5,3.09933]
[1736878060612,0.55,3227.5,3226.5,3.09933]
[1736878061476,0.55,3227.5,3226.3,3.09952]
[1736878061477,0.55,3227.3,3226.3,3.09952]
[1736878061981,0.0222,3227.2,3226.3,3.09952]
[1736878062187,0.0222,3227.2,3226.2,8.39804489]
[1736878062414,0.0222,3227.2,3226.3,3.0995]
[1736878062922,0.55,3227.1,3226.2,9.23784938]
[1736878063115,3.55,3226.9,3226.2,4.83990312]
[1736878063416,3.55,3227.1,3226.2,4.83990312]
[1736878063925,3.55,3227.1,3226.2,7.93951312]
[1736878064423,0.0222,3227.2,3226.3,3.09948]
[1736878065022,0.5722,3227.2,3226.3,3.09948]
[1736878065778,0.55,3227.0,3226.2,4.83990312]
[1736878066191,0.0222,3227.2,3226.2,4.83990312]
[1736878066521,0.55,3227.0,3226.2,4.83990312]
[1736878066728,0.0222,3226.7,3226.1,2.56147457]
[1736878066941,0.0222,3226.7,3226.0,2.56147457]
[1736878067147,0.0222,3226.7,3226.2,0.02999375]
[1736878067286,3.0,3227.4,3226.2,0.02999375]
[1736878067287,0.0222,3228.2,3226.6,3.55814177]
[1736878067622,3.0978,3228.1,3226.7,3.09914]
[1736878067790,0.0222,3228.2,3226.9,3.09887]
[1736878067791,6.09791,3228.0,3226.9,3.09887]
[1736878067990,3.09791,3228.0,3226.9,3.09887]
[1736878068218,3.09804,3227.9,3226.9,3.09887]
[1736878068537,0.0222,3228.2,3226.6,3.1702072]
[1736878068687,0.0222,3227.5,3226.6,2.56147457]
[1736878068885,3.0222,3227.5,3226.6,2.56147457]
[1736878069188,0.55,3227.4,3226.6,2.56147457]
[1736878069407,0.0222,3227.5,3226.5,3.09931]
[1736878069714,0.55,3227.4,3226.4,2.56147457]
[1736878069915,3.55,3227.2,3226.2,2.56147457]
[1736878070157,0.55,3227.1,3226.2,2.56147457]
[1736878070349,6.35135692,3227.5,3226.0,3.67613178]
[1736878070350,3.55,3226.9,3226.0,3.67613178]
[1736878070508,3.55,3226.9,3226.0,3.0998]
[1736878070710,0.0222,3226.8,3226.0,3.0998]
[1736878072048,3.55,3226.9,3226.0,3.0998]
[1736878072622,0.192,3227.0,3225.9,0.60550361]
[1736878073032,0.192,3227.0,3226.2,3.0996]
[1736878073241,0.192,3227.0,3225.9,0.60550361]
[1736878073438,0.55,3226.9,3226.0,3.09978]
[1736878074317,0.55,3226.7,3226.0,3.09978]
[1736878074912,0.0222,3227.2,3226.0,3.09978]
[1736878074913,0.0222,3227.2,3226.1,3.09971]
[1736878075147,0.0222,3227.6,3226.4,3.55814177]
[1736878075348,0.0222,3227.6,3226.8,3.09903]
[1736878075522,0.0222,3227.6,3226.7,0.803]
[1736878076112,0.0222,3227.6,3226.7,3.90205]
[1736878076312,0.0222,3227.6,3226.8,3.09901]
[1736878077126,0.5722,3227.6,3226.8,3.09901]
[1736878077328,0.5722,3227.6,3226.7,1.43476328]
[1736878077529,0.0222,3227.6,3226.9,3.09889]
[1736878078317,0.0222,3227.6,3226.7,1.43476328]
[1736878078518,0.0222,3227.6,3227.0,3.09877]
[1736878078822,0.0222,3227.6,3226.8,3.09895]
[1736878079043,0.0222,3227.6,3226.7,1.46472928]
[1736878079235,0.0222,3227.6,3227.0,3.09884]
[1736878079749,0.0222,3227.6,3226.8,3.09904]
[1736878079922,0.5722,3227.6,3226.8,3.09904]
[1736878080572,0.0222,3227.6,3226.9,3.09894]
[1736878081580,0.55,3227.4,3226.4,3.09933]
[1736878081719,3.09934,3226.5,3225.9,2.56147457]
[1736878081923,0.55,3226.3,3225.8,2.56147457]
[1736878082126,0.55,3226.0,3225.8,2.56147457]
[1736878082358,0.5722,3225.9,3225.8,2.56147457]
[1736878082546,0.55,3225.6,3224.8,2.56147457]
[1736878082745,0.23575408,3225.6,3224.8,3.44791435]
[1736878082965,0.0222,3225.2,3224.8,2.56147457]
[1736878083259,0.55,3225.0,3224.8,2.56147457]
[1736878083461,0.55,3225.0,3224.2,3.10148]
[1736878083663,0.5722,3225.2,3224.0,3.1017]
[1736878083959,0.5722,3225.2,3223.8,6.46577457]
[1736878084159,3.03876229,3225.1,3223.8,6.46577457]
[1736878084461,0.55,3225.0,3223.6,3.10208]
[1736878084671,0.5722,3224.9,3223.8,0.61973823]
[1736878084856,3.5722,3224.9,3223.8,0.99192005]
[1736878085162,0.55,3224.8,3223.8,0.99192005]
[1736878085464,3.55,3224.3,3223.0,3.90509]
[1736878085662,0.747,3224.3,3223.6,3.1021]
[1736878085961,0.747,3224.3,3223.6,3.10207]
[1736878086338,0.747,3224.3,3223.2,3.0]
[1736878086527,0.747,3224.3,3223.4,0.63134824]
[1736878086727,0.747,3224.3,3223.6,3.10211]
[1736878087668,0.747,3224.3,3223.7,3.10202]
[1736878087853,3.197,3224.6,3223.4,0.63134824]
[1736878088073,0.55,3224.5,3223.6,3.10211]
[1736878088239,0.55,3224.5,3223.7,0.310211]
[1736878088672,0.197,3224.6,3223.9,3.10177]
[1736878088858,0.197,3224.6,3223.7,0.310211]
[1736878089557,3.10136,3224.4,3223.4,0.63134824]
[1736878089738,0.5722,3224.3,3223.4,0.63134824]
[1736878090074,0.5722,3224.3,3223.4,0.73134824]
[1736878090445,0.0222,3224.3,3223.4,0.1]
[1736878090664,3.55,3224.1,3223.4,0.1]
[1736878093067,0.55,3224.0,3223.4,0.1]
[1736878093372,0.0222,3224.3,3223.4,0.1]
[1736878093574,0.55,3224.0,3223.4,0.1]
[1736878094233,0.5722,3224.3,3223.4,0.420249]
[1736878094447,0.197,3224.9,3223.6,3.90449]
[1736878094658,0.197,3224.9,3223.4,0.1]
[1736878094659,0.55,3224.4,3223.4,0.1]
[1736878094943,0.55,3224.4,3223.5,3.10219]
[1736878095142,3.55,3224.5,3223.5,3.10219]
[1736878095675,3.55,3224.5,3223.6,3.1021]
[1736878095875,3.55,3224.5,3223.6,3.43231]
[1736878096370,0.55,3224.3,3223.4,0.2]
[1736878096536,0.55,3224.1,3223.4,0.2]
[1736878097145,0.55,3224.0,3223.4,0.2]
[1736878097395,0.03877374,3224.1,3223.4,0.2]
[1736878097578,0.197,3224.0,3223.4,0.2]
[1736878098143,0.747,3224.0,3223.4,0.2]
[1736878098494,0.55,3223.8,3223.4,0.2]
[1736878099328,3.55,3223.9,3223.4,0.2]
[1736878100458,3.65185,3223.9,3223.4,0.2]
[1736878101050,0.55,3223.9,3223.4,0.2]
[1736878101548,6.65221,3223.5,3223.4,0.2]
[1736878101743,6.67441,3223.5,3223.4,0.2]
[1736878104300,3.5722,3223.5,3223.4,0.2]
[1736878104618,0.747,3223.5,3223.4,0.2]
[1736878104909,0.55,3223.5,3223.4,0.2]
[1736878106354,0.197,3223.8,3223.4,0.2]
[1736878106913,0.55,3223.7,3223.4,0.2]
[1736878107393,0.55,3223.7,3223.4,0.530247]
[1736878107959,0.0222,3224.5,3223.4,0.530247]
[1736878108172,0.197,3224.4,3223.5,0.8228]
[1736878108370,0.0222,3224.5,3223.5,0.8228]
[1736878108371,0.0222,3224.5,3223.6,3.1021]
[1736878108694,0.196,3224.4,3223.6,3.1021]
[1736878108858,0.0222,3224.9,3223.5,0.8228]
[1736878109190,3.29701,3224.8,3223.8,3.10184]
[1736878109393,3.55,3224.5,3223.8,0.310184]
[1736878110191,0.0222,3225.6,3224.6,3.10107]
[1736878110389,0.196,3225.4,3224.3,0.8228]
[1736878110595,0.196,3225.4,3224.8,3.10092]
[1736878111101,0.55,3225.3,3224.8,3.10088]
[1736878111398,0.55,3225.3,3224.6,3.10115]
[1736878111693,0.55,3225.3,3224.6,3.411265]
[1736878112468,0.55,3225.3,3224.6,0.310115]
[1736878112710,0.55,3225.3,3224.6,3.10112]
[1736878113124,0.55,3225.3,3224.4,3.73345925]
[1736878113304,3.55,3225.1,3224.3,0.8228]
[1736878113625,3.2964,3225.4,3224.0,0.8228]
[1736878113802,3.2964,3225.4,3224.1,0.45783124]
[1736878114124,3.2964,3225.4,3224.4,3.1013]
[1736878114125,0.55,3225.3,3224.4,3.1013]
[1736878114400,0.55,3225.3,3224.2,3.10151]
[1736878114401,0.55,3225.1,3224.2,3.10151]
[1736878114596,0.55,3224.9,3224.2,3.10151]
[1736878115000,0.55,3224.9,3224.1,0.45783124]
[1736878115167,3.10097,3224.8,3223.9,0.62370642]
[1736878115363,0.0222,3225.0,3223.8,0.310184]
[1736878115590,0.55,3224.4,3223.7,1.44047757]
[1736878115769,0.55,3224.4,3223.4,1.0228]
[1736878115770,3.55,3224.4,3223.4,1.0228]
[1736878115970,3.55,3224.4,3223.5,3.10212]
[1736878116569,0.0222,3224.3,3223.4,1.0228]
[1736878116772,0.0222,3224.3,3223.5,3.10218]
[1736878117015,0.55,3224.1,3223.5,3.10218]
[1736878117380,0.55,3224.1,3223.4,1.0228]
[1736878117587,0.55,3224.1,3223.5,3.10221]
[1736878117899,0.55,3224.1,3223.5,3.72391466]
[1736878118099,0.0222,3225.1,3224.2,3.10151]
[1736878118302,0.0222,3225.1,3223.5,4.59234743]
[1736878118303,0.0222,3225.5,3224.3,0.0300342]
[1736878118465,0.0222,3225.5,3223.9,0.8228]
[1736878118466,0.2182,3225.5,3224.7,3.10097]
[1736878118673,0.0222,3225.5,3224.8,0.310097]
[1736878118869,0.0222,3225.5,3224.4,3.10135]
[1736878119272,0.5722,3225.5,3224.4,3.10135]
[1736878119487,0.0222,3225.5,3224.4,3.10135]
[1736878119708,0.0222,3225.5,3224.6,3.10111]
[1736878119868,0.0222,3225.5,3224.7,3.10105]
[1736878119869,0.7682,3225.5,3224.7,3.10105]
[1736878120068,0.7682,3225.5,3224.8,3.10087]
[1736878120607,0.2182,3225.5,3224.9,3.10078]
[1736878121502,6.09993,3225.9,3225.2,3.10057]
[1736878121503,0.0222,3225.9,3225.2,3.10057]
[1736878121669,0.0222,3225.9,3225.4,3.10038]
[1736878121871,0.0222,3225.9,3224.7,0.8228]
[1736878121872,0.55,3225.8,3224.7,0.8228]
[1736878122070,0.55,3225.6,3224.8,3.10094]
[1736878122295,0.196,3225.8,3224.8,0.392374]
[1736878122608,0.196,3225.8,3225.2,3.10049]
[1736878123025,0.0222,3225.9,3225.2,3.10049]
[1736878123524,0.0222,3225.9,3224.8,0.6115138]
[1736878123525,3.55,3225.8,3224.8,0.6115138]
[1736878123875,3.55,3225.8,3224.9,3.10085]
[1736878124074,3.55,3225.8,3225.2,0.1]
[1736878124275,3.746,3225.8,3225.2,0.1]
[1736878124508,3.746,3225.8,3225.2,3.20057]
[1736878124509,0.746,3225.8,3225.2,3.20057]
[1736878125268,0.0222,3226.3,3225.3,0.03001234]
[1736878125472,3.09918,3226.7,3225.3,0.03001234]
[1736878125473,0.0222,3226.6,3225.4,0.813]
[1736878125695,0.0222,3226.6,3225.7,3.1]
[1736878125926,0.03874335,3226.4,3225.4,3.91337]
[1736878126141,0.55,3226.3,3225.4,3.91337]
[1736878126813,0.55,3226.3,3225.4,1.214337]
[1736878127016,0.55,3226.3,3225.6,3.10017]
[1736878127228,0.55,3226.3,3225.4,3.91334]
[1736878127898,0.746,3226.3,3225.4,3.91334]
[1736878128534,0.746,3226.3,3225.4,0.813]
[1736878128718,0.55,3226.1,3225.3,0.61807576]
[1736878129030,0.55,3226.1,3225.3,3.71853576]
[1736878129203,0.55,3226.1,3225.3,3.10046]
[1736878129404,3.09962,3226.2,3225.2,0.1]
[1736878129405,0.55,3225.9,3225.2,0.1]
[1736878129809,0.55,3226.1,3225.2,0.1]
[1736878131331,3.55,3226.0,3225.2,0.1]
[1736878131629,3.55,3226.0,3225.2,3.20052]
[1736878132621,0.0222,3226.2,3225.4,3.10037]
[1736878132937,0.55,3226.1,3225.4,3.10037]
[1736878133129,0.55,3226.1,3225.3,3.10048]
[1736878133333,0.2182,3226.2,3225.4,3.10034]
[1736878133515,0.55,3226.1,3225.4,3.10034]
[1736878133721,0.55,3226.1,3225.2,3.520582]
[1736878133917,0.55,3226.1,3225.2,3.20053]
[1736878134122,0.55,3225.9,3225.2,0.1]
[1736878134443,0.55,3225.6,3225.2,0.1]
[1736878134944,0.0222,3226.0,3225.2,0.1]
[1736878135247,0.0222,3226.0,3225.5,3.10029]
[1736878135542,0.0222,3226.0,3225.2,0.1]
[1736878135543,0.0222,3226.0,3225.3,3.10048]
[1736878136628,0.0222,3226.0,3225.3,0.46082747]
[1736878136882,0.0222,3226.9,3225.5,0.7979]
[1736878137049,0.0222,3226.9,3226.2,0.7979]
[1736878137222,0.0222,3227.4,3226.3,0.02998291]
[1736878137543,0.0222,3227.4,3226.2,0.7979]
[1736878137762,3.0,3227.2,3226.3,3.09952]